fUST/lending_fUST_20251026
["ID","MTS","AMOUNT","RATE_DAILY","PERIOD"]
[392445110,1761483055852,-500.0,0.00027397,2]
[392445111,1761483055861,-820.28,0.00027397,2]
[392445112,1761483055870,-495.81224592,0.00027397,2]
[392445113,1761483055879,-2009.56,0.00027397,2]
[392445114,1761483055891,-489.50390959,0.00027397,2]
[392445115,1761483055899,-697.74,0.00027397,2]
[392445116,1761483055908,-1192.81,0.00027397,2]
[392445117,1761483055917,-500.0,0.00027397,2]
[392445118,1761483055927,-500.0,0.00027397,2]
[392445119,1761483055937,-880.45,0.00027397,2]
[392445120,1761483055947,-577.94,0.00027397,2]
[392445121,1761483055956,-500.0,0.00027397,2]
[392445122,1761483055966,-500.0,0.00027397,2]
[392445123,1761483055976,-170.83917058,0.00027397,2]
[392445124,1761483055986,-500.0,0.00027397,2]
[392445125,1761483055996,-500.0,0.00027397,2]
[392445126,1761483056006,-511.65268068,0.00027397,2]
[392445127,1761483056015,-500.0,0.00027397,2]
[392445128,1761483056023,-500.0,0.00027397,2]
[392445129,1761483056032,-1407.9,0.00027397,2]
[392445130,1761483056041,-611.74,0.00027397,2]
[392445131,1761483056051,-2295.12,0.000274,2]
[392445132,1761483056060,-1371.91,0.000274,7]
[392445133,1761483056070,-6011.7,0.000274,7]
[392445134,1761483056079,-151.0,0.00027452,2]
[392445135,1761483056090,-151.0,0.00027507,2]
[392445136,1761483056099,-235.23826077,0.00027561,2]
[392445137,1761483056108,-500.0,0.00027671,2]
[392445138,1761483056117,-500.0,0.00027671,2]
[392445139,1761483056126,-500.0,0.00027671,2]
[392445140,1761483056136,-500.0,0.00027671,2]
[392445141,1761483056146,-500.0,0.00027671,2]
[392445142,1761483056157,-508.23,0.00027671,2]
[392445143,1761483056167,-559.7715905,0.00027671,2]
[392445144,1761483056178,-782.87,0.00027671,2]
[392445145,1761483056187,-500.0,0.00027671,2]
[392445146,1761483056197,-1000.0,0.00027671,2]
[392445147,1761483056206,-500.0,0.00027671,2]
[392445148,1761483056215,-500.0,0.00027671,2]
[392445149,1761483056224,-500.0,0.00027671,2]
[392445150,1761483056235,-500.0,0.00027671,2]
[392445151,1761483056244,-500.0,0.00027671,2]
[392445152,1761483056254,-500.0,0.00027671,2]
[392445153,1761483056263,-500.0,0.00027671,2]
[392445154,1761483056271,-500.0,0.00027671,2]
[392445155,1761483056281,-500.0,0.00027671,2]
[392445156,1761483056290,-500.0,0.00027671,2]
[392445157,1761483056299,-500.0,0.00027671,2]
[392445158,1761483056308,-500.0,0.00027671,2]
[392445159,1761483056318,-500.0,0.00027671,2]
[392445160,1761483056326,-223.0,0.00027671,2]
[392445161,1761483056336,-500.0,0.00027671,2]
[392445162,1761483056345,-500.0,0.00027671,2]
[392445163,1761483056354,-500.0,0.00027671,2]
[392445164,1761483056363,-500.0,0.00027671,2]
[392445165,1761483056372,-533.273604,0.00027671,2]
[392445166,1761483056382,-638.1,0.00027671,2]
[392445167,1761483056390,-500.0,0.00027671,2]
[392445168,1761483056399,-500.0,0.00027671,2]
[392445169,1761483056408,-500.0,0.00027671,2]
[392445170,1761483056418,-500.0,0.00027671,2]
[392445171,1761483056426,-500.0,0.00027671,2]
[392445172,1761483056435,-500.0,0.00027671,2]
[392445173,1761483056444,-500.0,0.00027671,2]
[392445174,1761483056453,-500.0,0.00027671,2]
[392445175,1761483056462,-500.0,0.00027671,2]
[392445176,1761483056470,-500.0,0.00027671,2]
[392445177,1761483056479,-500.0,0.00027671,2]
[392445178,1761483056489,-1000.0,0.00027671,2]
[392445179,1761483056498,-500.0,0.00027671,2]
[392445180,1761483056506,-543.1080788,0.00027671,2]
[392445181,1761483056516,-353.78094857,0.00027671,2]
[392445182,1761483056524,-500.0,0.00027671,2]
[392445183,1761483056533,-500.15568784,0.00027671,2]
[392445184,1761483056543,-775.75,0.00027671,2]
[392445185,1761483056551,-523.50348097,0.00027671,2]
[392445186,1761483056560,-500.0,0.00027671,2]
[392445187,1761483056570,-500.0,0.00027671,2]
[392445188,1761483056579,-385.87841098,0.00027671,2]
[392445189,1761483056588,-479.47511051,0.00027671,2]
[392445190,1761483056597,-1003.4,0.00027671,2]
[392445191,1761483056608,-500.0,0.00027671,2]
[392445192,1761483056618,-573.30210281,0.00027671,2]
[392445193,1761483056627,-1352.49,0.00027671,2]
[392445194,1761483056635,-500.0,0.00027671,2]
[392445195,1761483056644,-806.92,0.00027671,2]
[392445196,1761483056653,-780.75,0.00027671,2]
[392445197,1761483056668,-500.0,0.00027671,2]
[392445198,1761483056677,-500.0,0.00027671,2]
[392445199,1761483056686,-500.0,0.00027671,2]
[392445200,1761483056695,-1944.12,0.00027671,2]
[392445201,1761483056703,-500.0,0.00027671,2]
[392445202,1761483056712,-2966.75,0.00027671,2]
[392445203,1761483056721,-500.0,0.00027671,2]
[392445204,1761483056730,-1022.71,0.00027671,2]
[392445205,1761483056739,-500.0,0.00027671,2]
[392445206,1761483056749,-914.19,0.00027671,2]
[392445207,1761483056758,-500.0,0.00027671,2]
[392445208,1761483056767,-500.0,0.00027671,2]
[392445209,1761483056776,-500.0,0.00027671,2]
[392445210,1761483056785,-751.87,0.00027671,2]
[392445211,1761483056794,-1088.51,0.00027671,2]
[392445212,1761483056803,-231.88303355,0.00027671,2]
[392445213,1761483056812,-836.59,0.00027671,2]
[392445214,1761483056825,-500.0,0.00027671,2]
[392445215,1761483056834,-500.0,0.00027671,2]
[392445216,1761483056843,-500.0,0.00027671,2]
[392445217,1761483056851,-500.0,0.00027671,2]
[392445218,1761483056873,-500.0,0.00027671,2]
[392445219,1761483056882,-500.0,0.00027671,2]
[392445220,1761483056891,-1217.52,0.00027671,2]
[392445221,1761483056900,-500.0,0.00027671,2]
[392445222,1761483056909,-500.0,0.00027671,2]
[392445223,1761483056918,-1161.27,0.00027671,2]
[392445224,1761483056928,-500.0,0.00027671,2]
[392445225,1761483056939,-1159.52,0.00027671,2]
[392445226,1761483056949,-903.51,0.00027671,2]
[392445227,1761483056958,-500.0,0.00027671,2]
[392445228,1761483056967,-500.0,0.00027671,2]
[392445229,1761483056977,-500.0,0.00027671,2]
[392445230,1761483056986,-714.35,0.00027671,2]
[392445231,1761483056995,-500.0,0.00027671,2]
[392445232,1761483057004,-500.0,0.00027671,2]
[392445233,1761483057013,-500.0,0.00027671,2]
[392445234,1761483057023,-1024.4,0.00027671,2]
[392445235,1761483057032,-500.0,0.00027671,2]
[392445236,1761483057041,-500.0,0.00027671,2]
[392445237,1761483057050,-500.0,0.00027671,2]
[392445238,1761483057059,-500.0,0.00027671,2]
[392445239,1761483057070,-624.05,0.00027671,2]
[392445240,1761483057081,-500.0,0.00027671,2]
[392445241,1761483057091,-500.0,0.00027671,2]
[392445242,1761483057100,-500.0,0.00027671,2]
[392445243,1761483057109,-500.0,0.00027671,2]
[392445244,1761483057117,-500.0,0.00027671,2]
[392445245,1761483057126,-500.0,0.00027671,2]
[392445246,1761483057136,-500.0,0.00027671,2]
[392445247,1761483057145,-500.0,0.00027671,2]
[392445248,1761483057154,-720.79,0.00027671,2]
[392445249,1761483057164,-500.0,0.00027671,2]
[392445250,1761483057173,-500.0,0.00027671,2]
[392445251,1761483057182,-500.0,0.00027671,2]
[392445252,1761483057192,-1070.12,0.00027671,2]
[392445253,1761483057201,-1133.45,0.00027671,2]
[392445254,1761483057210,-1393.22,0.00027671,2]
[392445255,1761483057219,-500.0,0.00027671,2]
[392445256,1761483057228,-791.3,0.00027671,2]
[392445257,1761483057238,-500.0,0.00027671,2]
[392445258,1761483057247,-1144.15,0.00027671,2]
[392445259,1761483057256,-500.0,0.00027671,2]
[392445260,1761483057266,-500.0,0.00027671,2]
[392445261,1761483057276,-579.37,0.00027671,2]
[392445262,1761483057285,-500.0,0.00027671,2]
[392445263,1761483057294,-874.52,0.00027671,2]
[392445264,1761483057303,-734.95,0.00027671,2]
[392445265,1761483057314,-500.0,0.00027671,2]
[392445266,1761483057323,-500.0,0.00027671,2]
[392445267,1761483057332,-500.0,0.00027671,2]
[392445268,1761483057342,-500.0,0.00027671,2]
[392445269,1761483057351,-500.0,0.00027671,2]
[392445270,1761483057360,-519.96,0.00027671,2]
[392445271,1761483057375,-500.0,0.00027671,2]
[392445272,1761483057385,-500.0,0.00027671,2]
[392445273,1761483057395,-500.0,0.00027671,2]
[392445274,1761483057405,-500.0,0.00027671,2]
[392445275,1761483057503,-500.0,0.00027671,2]
[392445276,1761483057512,-500.0,0.00027671,2]
[392445277,1761483057523,-500.0,0.00027671,2]
[392445278,1761483057533,-500.0,0.00027671,2]
[392445279,1761483057542,-1066.12,0.00027671,2]
[392445280,1761483057551,-717.23,0.00027671,2]
[392445281,1761483057561,-775.42,0.00027671,2]
[392445282,1761483057570,-500.0,0.00027671,2]
[392445283,1761483057579,-436.37003459,0.00027671,2]
[392445284,1761483057588,-500.0,0.00027671,2]
[392445285,1761483057597,-500.0,0.00027671,2]
[392445286,1761483057606,-572.89,0.00027671,2]
[392445287,1761483057615,-500.0,0.00027671,2]
[392445288,1761483057624,-616.45,0.00027671,2]
[392445289,1761483057634,-500.0,0.00027671,2]
[392445290,1761483057644,-500.0,0.00027671,2]
[392445291,1761483057654,-500.0,0.00027671,2]
[392445292,1761483057663,-1098.13,0.00027671,2]
[392445293,1761483057672,-1501.2,0.00027671,2]
[392445294,1761483057681,-500.0,0.00027671,2]
[392445295,1761483057691,-500.0,0.00027671,2]
[392445296,1761483057700,-474.79547584,0.00027671,2]
[392445297,1761483057709,-475.93410084,0.00027671,2]
[392445298,1761483057719,-500.0,0.00027671,2]
[392445299,1761483057728,-500.0,0.00027671,2]
[392445300,1761483057738,-500.0,0.00027671,2]
[392445301,1761483057748,-1004.18,0.00027671,2]
[392445302,1761483057758,-1010.82,0.00027671,2]
[392445303,1761483057767,-1538.37,0.00027671,2]
[392445304,1761483057776,-478.46954488,0.00027671,2]
[392445305,1761483057785,-500.0,0.00027671,2]
[392445306,1761483057793,-747.75,0.00027671,2]
[392445307,1761483057803,-500.0,0.00027671,2]
[392445308,1761483057812,-1047.19,0.00027671,2]
[392445309,1761483057826,-1709.16,0.00027671,2]
[392445310,1761483057836,-500.0,0.00027671,2]
[392445311,1761483057845,-2054.32,0.00027671,2]
[392445312,1761483057855,-799.25,0.00027671,2]
[392445313,1761483057865,-500.0,0.00027671,2]
[392445314,1761483057877,-196.3856891,0.00027671,2]
[392445315,1761483057888,-809.51,0.00027671,2]
[392445316,1761483057898,-500.0,0.00027671,2]
[392445317,1761483057907,-540.86,0.00027671,2]
[392445318,1761483057916,-575.17,0.00027671,2]
[392445319,1761483057925,-1038.09,0.00027671,2]
[392445320,1761483057934,-500.0,0.00027671,2]
[392445321,1761483057943,-500.0,0.00027671,2]
[392445322,1761483057953,-500.0,0.00027671,2]
[392445323,1761483057963,-500.0,0.00027671,2]
[392445324,1761483057972,-928.31,0.00027671,2]
[392445325,1761483057981,-1290.91,0.00027671,2]
[392445326,1761483057990,-500.0,0.00027671,2]
[392445327,1761483057999,-500.0,0.00027671,2]
[392445328,1761483058008,-500.0,0.00027671,2]
[392445329,1761483058017,-181.6263393,0.00027671,2]
[392445330,1761483058026,-775.46,0.00027671,2]
[392445331,1761483058035,-500.0,0.00027671,2]
[392445332,1761483058044,-1732.98,0.00027671,2]
[392445333,1761483058052,-500.0,0.00027671,2]
[392445334,1761483058061,-465.98,0.00027671,2]
[392445335,1761483058071,-1010.2,0.00027671,2]
[392445336,1761483058079,-500.0,0.00027671,2]
[392445337,1761483058088,-500.0,0.00027671,2]
[392445338,1761483058097,-602.62,0.00027671,2]
[392445339,1761483058106,-500.0,0.00027671,2]
[392445340,1761483058116,-552.95,0.00027671,2]
[392445341,1761483058125,-534.12417545,0.00027671,2]
[392445342,1761483058137,-523.61,0.00027671,2]
[392445343,1761483058146,-605.47,0.00027671,2]
[392445344,1761483058155,-912.43,0.00027671,2]
[392445345,1761483058164,-824.14,0.00027671,2]
[392445346,1761483058173,-500.0,0.00027671,2]
[392445347,1761483058183,-754.82,0.00027671,2]
[392445348,1761483058192,-721.92,0.00027671,2]
[392445349,1761483058201,-500.0,0.00027671,2]
[392445350,1761483058210,-1168.26,0.00027671,2]
[392445351,1761483058220,-500.0,0.00027671,2]
[392445352,1761483058229,-536.64,0.00027671,2]
[392445353,1761483058238,-203.11684098,0.00027671,2]
[392445354,1761483058247,-938.7,0.00027671,2]
[392445355,1761483058256,-1818.91,0.00027671,2]
[392445356,1761483058265,-500.0,0.00027671,2]
[392445357,1761483058276,-500.0,0.00027671,2]
[392445358,1761483058285,-500.0,0.00027671,2]
[392445359,1761483058294,-721.16,0.00027671,2]
[392445360,1761483058303,-570.92314285,0.00027671,2]
[392445361,1761483058312,-500.0,0.00027671,2]
[392445362,1761483058321,-500.0,0.00027671,2]
[392445363,1761483058331,-644.18,0.00027671,2]
[392445364,1761483058341,-1466.62,0.00027671,2]
[392445365,1761483058350,-685.25,0.00027671,2]
[392445366,1761483058359,-199.0,0.00027671,7]
[392445367,1761483058368,-500.0,0.00027671,2]
[392445368,1761483058377,-1247.86,0.00027671,2]
[392445369,1761483058386,-1035.78,0.00027671,2]
[392445370,1761483058395,-913.81,0.00027671,2]
[392445371,1761483058404,-500.0,0.00027671,2]
[392445372,1761483058413,-500.0,0.00027671,2]
[392445373,1761483058422,-500.0,0.00027671,2]
[392445374,1761483058431,-500.0,0.00027671,2]
[392445375,1761483058440,-2314.16,0.00027671,2]
[392445376,1761483058449,-559.76,0.00027671,2]
[392445377,1761483058458,-500.0,0.00027671,2]
[392445378,1761483058467,-500.0,0.00027671,2]
[392445379,1761483058476,-500.0,0.00027671,2]
[392445380,1761483058485,-1095.8,0.00027671,2]
[392445381,1761483058494,-1217.84,0.00027671,2]
[392445382,1761483058503,-628.78,0.00027671,2]
[392445383,1761483058512,-1178.12,0.00027671,2]
[392445384,1761483058521,-500.0,0.00027671,2]
[392445385,1761483058530,-500.0,0.00027671,2]
[392445386,1761483058539,-500.0,0.00027671,2]
[392445387,1761483058548,-2150.15,0.00027671,2]
[392445388,1761483058557,-1693.8,0.00027671,2]
[392445389,1761483058566,-519.06301349,0.00027671,2]
[392445390,1761483058576,-837.08,0.00027671,2]
[392445391,1761483058585,-500.0,0.00027671,2]
[392445392,1761483058594,-895.81,0.00027671,2]
[392445393,1761483058603,-521.72202236,0.00027671,2]
[392445394,1761483058612,-500.0,0.00027671,2]
[392445395,1761483058621,-573.08,0.00027671,2]
[392445396,1761483058630,-1326.99,0.00027671,2]
[392445397,1761483058639,-566.6,0.00027671,2]
[392445398,1761483058647,-593.43583987,0.00027671,2]
[392445399,1761483058656,-637.1,0.00027671,2]
[392445400,1761483058666,-1066.38,0.00027671,2]
[392445401,1761483058675,-1861.51,0.00027671,2]
[392445402,1761483058683,-500.0,0.00027671,2]
[392445403,1761483058692,-500.0,0.00027671,2]
[392445404,1761483058702,-831.35,0.00027671,2]
[392445405,1761483058711,-501.13533724,0.00027671,2]
[392445406,1761483058720,-500.0,0.00027671,2]
[392445407,1761483058729,-2974.0,0.00027671,2]
[392445408,1761483058738,-1192.19,0.00027671,2]
[392445409,1761483058747,-530.5490222,0.00027671,2]
[392445410,1761483058756,-500.0,0.00027671,2]
[392445411,1761483058765,-1106.48,0.00027671,2]
[392445412,1761483058775,-500.0,0.00027671,2]
[392445413,1761483058784,-500.0,0.00027671,2]
[392445414,1761483058793,-1376.09,0.00027671,2]
[392445415,1761483058802,-500.0,0.00027671,2]
[392445416,1761483058811,-820.28,0.00027671,2]
[392445417,1761483058824,-2009.56,0.00027671,2]
[392445418,1761483058833,-697.74,0.00027671,2]
[392445419,1761483058843,-1192.81,0.00027671,2]
[392445420,1761483058852,-500.0,0.00027671,2]
[392445421,1761483058861,-500.0,0.00027671,2]
[392445422,1761483058871,-880.45,0.00027671,2]
[392445423,1761483058880,-577.94,0.00027671,2]
[392445424,1761483058890,-500.0,0.00027671,2]
[392445425,1761483058899,-336.3997218,0.00027671,2]
[392445426,1761483058908,-500.0,0.00027671,2]
[392445427,1761483058918,-500.0,0.00027671,2]
[392445428,1761483058927,-500.0,0.00027671,2]
[392445429,1761483058936,-500.0,0.00027671,2]
[392445430,1761483058946,-1407.9,0.00027671,2]
[392445431,1761483058956,-611.74,0.00027671,2]
[392445432,1761483058965,-435.32949454,0.00027673,5]
[392445433,1761483058976,-500.0,0.00027673,5]
[392445434,1761483058987,-500.0,0.00027673,5]
[392445435,1761483058996,-500.0,0.00027673,5]
[392445436,1761483059005,-500.0,0.00027673,5]
[392445437,1761483059014,-500.0,0.00027673,4]
[392445438,1761483059025,-500.0,0.00027673,5]
[392445439,1761483059034,-500.0,0.00027673,5]
[392445440,1761483059043,-500.0,0.00027673,5]
[392445441,1761483059053,-500.0,0.00027673,5]
[392445442,1761483059062,-500.0,0.00027673,5]
[392445443,1761483059071,-448.26434612,0.00027673,5]
[392445444,1761483059080,-158.66759371,0.00027673,5]
[392445445,1761483059090,-500.0,0.00027673,5]
[392445446,1761483059099,-500.0,0.00027673,5]
[392445447,1761483059108,-500.0,0.00027673,5]
[392445448,1761483059117,-500.0,0.00027673,2]
[392445449,1761483059127,-500.0,0.00027673,5]
[392445450,1761483059136,-500.0,0.00027673,5]
[392445451,1761483059145,-563.74830043,0.00027673,5]
[392445452,1761483059155,-500.0,0.00027673,5]
[392445453,1761483059164,-500.0,0.00027673,5]
[392445454,1761483059174,-500.0,0.00027673,5]
[392445455,1761483059183,-500.0,0.00027673,5]
[392445456,1761483059193,-500.0,0.00027673,5]
[392445457,1761483059203,-500.0,0.00027673,5]
[392445458,1761483059213,-500.0,0.00027673,5]
[392445459,1761483059223,-600.3222672,0.00027673,5]
[392445460,1761483059326,-501.25381617,0.00027673,5]
[392445461,1761483059336,-500.0,0.00027673,5]
[392445462,1761483059345,-500.0,0.00027673,5]
[392445463,1761483059354,-500.0,0.00027673,5]
[392445464,1761483059363,-500.0,0.00027673,5]
[392445465,1761483059372,-500.0,0.00027673,5]
[392445466,1761483059382,-500.0,0.00027673,5]
[392445467,1761483059391,-500.0,0.00027673,5]
[392445468,1761483059400,-500.0,0.00027673,5]
[392445469,1761483059409,-500.0,0.00027673,5]
[392445470,1761483059419,-500.0,0.00027673,5]
[392445471,1761483059427,-500.0,0.00027673,5]
[392445472,1761483059436,-500.0,0.00027673,5]
[392445473,1761483059445,-500.0,0.00027673,5]
[392445474,1761483059454,-500.0,0.00027673,5]
[392445475,1761483059463,-299.11451196,0.00027673,5]
[392445476,1761483059473,-500.0,0.00027673,5]
[392445477,1761483059482,-1000.0,0.00027921,5]
[392445478,1761483059492,-1000.0,0.00027921,5]
[392445479,1761483059501,-593.49243116,0.00027921,5]
[392445480,1761483059510,-260.0,0.00027931,2]
[392445481,1761483059519,-500.0,0.00027945,2]
[392445482,1761483059528,-500.0,0.00027945,2]
[392445483,1761483059537,-500.0,0.00027945,2]
[392445484,1761483059547,-500.0,0.00027945,2]
[392445485,1761483059556,-500.0,0.00027945,2]
[392445486,1761483059566,-508.23,0.00027945,2]
[392445487,1761483059575,-782.87,0.00027945,2]
[392445488,1761483059584,-500.0,0.00027945,2]
[392445489,1761483059594,-1000.0,0.00027945,2]
[392445490,1761483059603,-500.0,0.00027945,2]
[392445491,1761483059612,-500.0,0.00027945,2]
[392445492,1761483059622,-500.0,0.00027945,2]
[392445493,1761483059630,-500.0,0.00027945,2]
[392445494,1761483059640,-500.0,0.00027945,2]
[392445495,1761483059648,-500.0,0.00027945,2]
[392445496,1761483059657,-500.0,0.00027945,2]
[392445497,1761483059666,-500.0,0.00027945,2]
[392445498,1761483059675,-500.0,0.00027945,2]
[392445499,1761483059684,-500.0,0.00027945,2]
[392445500,1761483059694,-521.89216084,0.00027945,2]
[392445501,1761483059702,-500.0,0.00027945,2]
[392445502,1761483059711,-500.0,0.00027945,2]
[392445503,1761483059720,-223.0,0.00027945,2]
[392445504,1761483059729,-500.0,0.00027945,2]
[392445505,1761483059738,-500.0,0.00027945,2]
[392445506,1761483059747,-521.65322426,0.00027945,2]
[392445507,1761483059756,-500.0,0.00027945,2]
[392445508,1761483059765,-638.1,0.00027945,2]
[392445509,1761483059773,-500.0,0.00027945,2]
[392445510,1761483059782,-500.0,0.00027945,2]
[392445511,1761483059791,-500.0,0.00027945,2]
[392445512,1761483059800,-500.0,0.00027945,2]
[392445513,1761483059809,-500.0,0.00027945,2]
[392445514,1761483059820,-500.0,0.00027945,2]
[392445515,1761483059830,-500.0,0.00027945,2]
[392445516,1761483059839,-500.0,0.00027945,2]
[392445517,1761483059848,-500.0,0.00027945,2]
[392445518,1761483059857,-500.0,0.00027945,2]
[392445519,1761483059867,-500.0,0.00027945,2]
[392445520,1761483059875,-1000.0,0.00027945,2]
[392445521,1761483059884,-213.94683355,0.00027945,2]
[392445522,1761483059896,-500.0,0.00027945,2]
[392445523,1761483059906,-775.75,0.00027945,2]
[392445524,1761483059915,-500.0,0.00027945,2]
[392445525,1761483059925,-500.0,0.00027945,2]
[392445526,1761483059934,-1003.4,0.00027945,2]
[392445527,1761483059944,-500.0,0.00027945,2]
[392445528,1761483059954,-1352.49,0.00027945,2]
[392445529,1761483059963,-500.0,0.00027945,2]
[392445530,1761483059973,-806.92,0.00027945,2]
[392445531,1761483059983,-780.75,0.00027945,2]
[392445532,1761483059992,-500.0,0.00027945,2]
[392445533,1761483060001,-500.0,0.00027945,2]
[392445534,1761483060010,-500.0,0.00027945,2]
[392445535,1761483060019,-1944.12,0.00027945,2]
[392445536,1761483060028,-500.0,0.00027945,2]
[392445537,1761483060038,-2966.75,0.00027945,2]
[392445538,1761483060047,-506.92853272,0.00027945,2]
[392445539,1761483060057,-1022.71,0.00027945,2]
[392445540,1761483060067,-500.0,0.00027945,2]
[392445541,1761483060076,-914.19,0.00027945,2]
[392445542,1761483060084,-500.0,0.00027945,2]
[392445543,1761483060095,-646.12999241,0.00027945,2]
[392445544,1761483060104,-500.0,0.00027945,2]
[392445545,1761483060114,-751.87,0.00027945,2]
[392445546,1761483060123,-1088.51,0.00027945,2]
[392445547,1761483060132,-836.59,0.00027945,2]
[392445548,1761483060141,-500.0,0.00027945,2]
[392445549,1761483060150,-500.0,0.00027945,2]
[392445550,1761483060160,-500.0,0.00027945,2]
[392445551,1761483060169,-229.18649756,0.00027945,2]
[392445552,1761483060179,-500.0,0.00027945,2]
[392445553,1761483060188,-500.0,0.00027945,2]
[392445554,1761483060197,-1217.52,0.00027945,2]
[392445555,1761483060207,-500.0,0.00027945,2]
[392445556,1761483060216,-500.0,0.00027945,2]
[392445557,1761483060225,-1161.27,0.00027945,2]
[392445558,1761483060234,-500.0,0.00027945,2]
[392445559,1761483060243,-1159.52,0.00027945,2]
[392445560,1761483060252,-903.51,0.00027945,2]
[392445561,1761483060262,-500.0,0.00027945,2]
[392445562,1761483060271,-500.0,0.00027945,2]
[392445563,1761483060280,-500.0,0.00027945,2]
[392445564,1761483060289,-714.35,0.00027945,2]
[392445565,1761483060299,-516.13412373,0.00027945,2]
[392445566,1761483060308,-578.9008377,0.00027945,2]
[392445567,1761483060317,-500.0,0.00027945,2]
[392445568,1761483060326,-1024.4,0.00027945,2]
[392445569,1761483060335,-500.0,0.00027945,2]
[392445570,1761483060345,-500.0,0.00027945,2]
[392445571,1761483060354,-500.0,0.00027945,2]
[392445572,1761483060363,-500.0,0.00027945,2]
[392445573,1761483060372,-624.05,0.00027945,2]
[392445574,1761483060381,-500.0,0.00027945,2]
[392445575,1761483060390,-500.0,0.00027945,2]
[392445576,1761483060399,-500.0,0.00027945,2]
[392445577,1761483060408,-500.0,0.00027945,2]
[392445578,1761483060417,-500.0,0.00027945,2]
[392445579,1761483060426,-500.0,0.00027945,2]
[392445580,1761483060435,-500.0,0.00027945,2]
[392445581,1761483060445,-500.0,0.00027945,2]
[392445582,1761483060454,-720.79,0.00027945,2]
[392445583,1761483060463,-500.0,0.00027945,2]
[392445584,1761483060472,-500.0,0.00027945,2]
[392445585,1761483060481,-500.0,0.00027945,2]
[392445586,1761483060489,-1070.12,0.00027945,2]
[392445587,1761483060498,-1133.45,0.00027945,2]
[392445588,1761483060507,-1393.22,0.00027945,2]
[392445589,1761483060516,-500.0,0.00027945,2]
[392445590,1761483060525,-791.3,0.00027945,2]
[392445591,1761483060534,-500.0,0.00027945,2]
[392445592,1761483060543,-1144.15,0.00027945,2]
[392445593,1761483060552,-500.0,0.00027945,2]
[392445594,1761483060561,-500.0,0.00027945,2]
[392445595,1761483060571,-579.37,0.00027945,2]
[392445596,1761483060580,-500.0,0.00027945,2]
[392445597,1761483060590,-874.52,0.00027945,2]
[392445598,1761483060600,-734.95,0.00027945,2]
[392445599,1761483060609,-500.0,0.00027945,2]
[392445600,1761483060619,-500.0,0.00027945,2]
[392445601,1761483060628,-500.0,0.00027945,2]
[392445602,1761483060637,-500.0,0.00027945,2]
[392445603,1761483060646,-500.0,0.00027945,2]
[392445604,1761483060655,-519.96,0.00027945,2]
[392445605,1761483060664,-500.0,0.00027945,2]
[392445606,1761483060672,-500.0,0.00027945,2]
[392445607,1761483060681,-500.0,0.00027945,2]
[392445608,1761483060690,-500.0,0.00027945,2]
[392445609,1761483060699,-500.0,0.00027945,2]